{"text_format":"2","workbook":"xlsx","n_sheets":2,"sheets":["TestStepExecution","data"],"not_rendered":{"charts":0,"images":0,"macros":0,"external_links":0,"defined_names":0,"comments":0,"pivot_tables":0},"unopened":[],"bounds":{"document_bytes":16777216,"sheet_cells":100000,"run_cost":"one","rows_first":2000,"rows_last":500,"rows_between":2000,"halvings":0,"cell_chars":16384,"cell_head_chars":4096},"cells_cut":0,"cells_raw":0,"read":"whole","date_system":"1900"}

{"sheet":"TestStepExecution","index":0,"n_rows":15,"n_cols":9,"rows_kept":15,"cut":false,"hidden":false,"merged":[]}
["Activity","LocatorType","Locator","Value","Comparison","Value2","Timeout","Optional","Release"]
["GOTOURL",null,null,"http://localhost:5000/"]
["IF",null,"//a[contains(.,'Test Steps')]",null,"=","False",1,"True"]
["settext",null,"//*[@id=\"username\"]","admin"]
["settext",null,"//*[@id=\"password\"]",12345]
["click",null,"/html/body/div/form/p[3]/button"]
["ENDIF"]
["click",null,"//a[contains(.,'Test Steps')]"]
["click",null,"//a[contains(.,'+ create Test Step')]"]
["settext",null,"//input[contains(@name,'name')]","$(Name)"]
["settext",null,"//*[@id=\"description\"]","$(Description)"]
["click",null,"//*[@name='activity_type']"]
["click",null,"//option[contains(.,\"$(ActivityType)\")]"]
["settext",null,"//input[contains(@name,'timeout')]",1]
["click",null,"//button[contains(@type,'submit')]"]

{"sheet":"data","index":1,"n_rows":55,"n_cols":7,"rows_kept":55,"cut":false,"hidden":false,"merged":[]}
["Type","Name","Line","Product","Object","ActivityType","Description"]
["TestStep",{"$f":"\"GES_\"&(C2)&\"_PROD_\"&D2 & \"_\" & \"_\" & E2 & \"_\" & F2","v":"GES_1_PROD_Franzi__Name_CLICK"},1,"Franzi","Name","CLICK",{"$f":"B2&\" \" &E2 & \" \" &F2","v":"GES_1_PROD_Franzi__Name_CLICK Name CLICK"}]
["TestStep",{"$f":"\"GES_\"&(C3)&\"_PROD_\"&D3 & \"_\" & \"_\" & E3 & \"_\" & F3","v":"GES_1_PROD_Franzi__Address_SETTEXT"},1,"Franzi","Address","SETTEXT",{"$f":"B3&\" \" &E3 & \" \" &F3","v":"GES_1_PROD_Franzi__Address_SETTEXT Address SETTEXT"}]
["TestStep","GES_1_PROD_Franzi__PostlCode_CLICK",1,"Franzi","PostlCode","CLICK","GES_1_PROD_Franzi__PostlCode_CLICK PostlCode CLICK"]
["TestStep","GES_1_PROD_Franzi__Street_SETTEXT",1,"Franzi","Street","SETTEXT","GES_1_PROD_Franzi__Street_SETTEXT Street SETTEXT"]
["TestStep","GES_1_PROD_Franzi__House Number_CLICK",1,"Franzi","House Number","CLICK","GES_1_PROD_Franzi__House Number_CLICK House Number CLICK"]
["TestStep","GES_1_PROD_Franzi__House_SETTEXT",1,"Franzi","House","SETTEXT","GES_1_PROD_Franzi__House_SETTEXT House SETTEXT"]
["TestStep","GES_1_PROD_Franzi__Service 1_CLICK",1,"Franzi","Service 1","CLICK","GES_1_PROD_Franzi__Service 1_CLICK Service 1 CLICK"]
["TestStep","GES_1_PROD_Franzi__HouseSerivce_SETTEXT",1,"Franzi","HouseSerivce","SETTEXT","GES_1_PROD_Franzi__HouseSerivce_SETTEXT HouseSerivce SETTEXT"]
["TestStep","GES_1_PROD_Franzi__HouseNumber_CLICK",1,"Franzi","HouseNumber","CLICK","GES_1_PROD_Franzi__HouseNumber_CLICK HouseNumber CLICK"]
["TestStep","GES_1_PROD_Franzi__OtherNumber_SETTEXT",1,"Franzi","OtherNumber","SETTEXT","GES_1_PROD_Franzi__OtherNumber_SETTEXT OtherNumber SETTEXT"]
["TestStep","GES_1_PROD_Franzi__ThirdThing_CLICK",1,"Franzi","ThirdThing","CLICK","GES_1_PROD_Franzi__ThirdThing_CLICK ThirdThing CLICK"]
["TestStep","GES_1_PROD_Franzi__Another thing_SETTEXT",1,"Franzi","Another thing","SETTEXT","GES_1_PROD_Franzi__Another thing_SETTEXT Another thing SETTEXT"]
["TestStep","GES_1_PROD_Franzi__Revolution_CLICK",1,"Franzi","Revolution","CLICK","GES_1_PROD_Franzi__Revolution_CLICK Revolution CLICK"]
["TestStep","GES_1_PROD_Franzi__Evolution_SETTEXT",1,"Franzi","Evolution","SETTEXT","GES_1_PROD_Franzi__Evolution_SETTEXT Evolution SETTEXT"]
["TestStep","GES_1_PROD_Franzi__Baangt_CLICK",1,"Franzi","Baangt","CLICK","GES_1_PROD_Franzi__Baangt_CLICK Baangt CLICK"]
["TestStep","GES_1_PROD_Franzi__Variant 1_SETTEXT",1,"Franzi","Variant 1","SETTEXT","GES_1_PROD_Franzi__Variant 1_SETTEXT Variant 1 SETTEXT"]
["TestStep","GES_1_PROD_Franzi__Variant luxury_CLICK",1,"Franzi","Variant luxury","CLICK","GES_1_PROD_Franzi__Variant luxury_CLICK Variant luxury CLICK"]
["TestStep","GES_1_PROD_Franzi__Varinat better_SETTEXT",1,"Franzi","Varinat better","SETTEXT","GES_1_PROD_Franzi__Varinat better_SETTEXT Varinat better SETTEXT"]
["TestStep","GES_1_PROD_Franzi__Variant worse_CLICK",1,"Franzi","Variant worse","CLICK","GES_1_PROD_Franzi__Variant worse_CLICK Variant worse CLICK"]
["TestStep","GES_1_PROD_Franzi__Bad Variant_SETTEXT",1,"Franzi","Bad Variant","SETTEXT","GES_1_PROD_Franzi__Bad Variant_SETTEXT Bad Variant SETTEXT"]
["TestStep","GES_1_PROD_Franzi__42 Levels_CLICK",1,"Franzi","42 Levels","CLICK","GES_1_PROD_Franzi__42 Levels_CLICK 42 Levels CLICK"]
["TestStep","GES_1_PROD_Franzi__41 Levels_SETTEXT",1,"Franzi","41 Levels","SETTEXT","GES_1_PROD_Franzi__41 Levels_SETTEXT 41 Levels SETTEXT"]
["TestStep","GES_1_PROD_Franzi__30 Cents_CLICK",1,"Franzi","30 Cents","CLICK","GES_1_PROD_Franzi__30 Cents_CLICK 30 Cents CLICK"]
["TestStep","GES_1_PROD_Franzi__ThisIsSomething_SETTEXT",1,"Franzi","ThisIsSomething","SETTEXT","GES_1_PROD_Franzi__ThisIsSomething_SETTEXT ThisIsSomething SETTEXT"]
["TestStep","GES_1_PROD_Franzi__WhowIsThat good_CLICK",1,"Franzi","WhowIsThat good","CLICK","GES_1_PROD_Franzi__WhowIsThat good_CLICK WhowIsThat good CLICK"]
["TestStep","GES_1_PROD_Franzi__OutofOptions_SETTEXT",1,"Franzi","OutofOptions","SETTEXT","GES_1_PROD_Franzi__OutofOptions_SETTEXT OutofOptions SETTEXT"]
["TestStep","GES_1_PROD_Franzi__PlainWithoutAnything_CLICK",1,"Franzi","PlainWithoutAnything","CLICK","GES_1_PROD_Franzi__PlainWithoutAnything_CLICK PlainWithoutAnything CLICK"]
["TestStep","GES_1_PROD_Fritzi__Name_SETTEXT",1,"Fritzi","Name","SETTEXT","GES_1_PROD_Fritzi__Name_SETTEXT Name SETTEXT"]
["TestStep","GES_1_PROD_Fritzi__Address_CLICK",1,"Fritzi","Address","CLICK","GES_1_PROD_Fritzi__Address_CLICK Address CLICK"]
["TestStep","GES_1_PROD_Fritzi__PostlCode_SETTEXT",1,"Fritzi","PostlCode","SETTEXT","GES_1_PROD_Fritzi__PostlCode_SETTEXT PostlCode SETTEXT"]
["TestStep","GES_1_PROD_Fritzi__Street_CLICK",1,"Fritzi","Street","CLICK","GES_1_PROD_Fritzi__Street_CLICK Street CLICK"]
["TestStep","GES_1_PROD_Fritzi__House Number_SETTEXT",1,"Fritzi","House Number","SETTEXT","GES_1_PROD_Fritzi__House Number_SETTEXT House Number SETTEXT"]
["TestStep","GES_1_PROD_Fritzi__House_CLICK",1,"Fritzi","House","CLICK","GES_1_PROD_Fritzi__House_CLICK House CLICK"]
["TestStep","GES_1_PROD_Fritzi__Service 1_SETTEXT",1,"Fritzi","Service 1","SETTEXT","GES_1_PROD_Fritzi__Service 1_SETTEXT Service 1 SETTEXT"]
["TestStep","GES_1_PROD_Fritzi__HouseSerivce_CLICK",1,"Fritzi","HouseSerivce","CLICK","GES_1_PROD_Fritzi__HouseSerivce_CLICK HouseSerivce CLICK"]
["TestStep","GES_1_PROD_Fritzi__HouseNumber_SETTEXT",1,"Fritzi","HouseNumber","SETTEXT","GES_1_PROD_Fritzi__HouseNumber_SETTEXT HouseNumber SETTEXT"]
["TestStep","GES_1_PROD_Fritzi__OtherNumber_CLICK",1,"Fritzi","OtherNumber","CLICK","GES_1_PROD_Fritzi__OtherNumber_CLICK OtherNumber CLICK"]
["TestStep","GES_1_PROD_Fritzi__ThirdThing_SETTEXT",1,"Fritzi","ThirdThing","SETTEXT","GES_1_PROD_Fritzi__ThirdThing_SETTEXT ThirdThing SETTEXT"]
["TestStep","GES_1_PROD_Fritzi__Another thing_CLICK",1,"Fritzi","Another thing","CLICK","GES_1_PROD_Fritzi__Another thing_CLICK Another thing CLICK"]
["TestStep","GES_1_PROD_Fritzi__Revolution_SETTEXT",1,"Fritzi","Revolution","SETTEXT","GES_1_PROD_Fritzi__Revolution_SETTEXT Revolution SETTEXT"]
["TestStep","GES_1_PROD_Fritzi__Evolution_CLICK",1,"Fritzi","Evolution","CLICK","GES_1_PROD_Fritzi__Evolution_CLICK Evolution CLICK"]
["TestStep","GES_1_PROD_Fritzi__Baangt_SETTEXT",1,"Fritzi","Baangt","SETTEXT","GES_1_PROD_Fritzi__Baangt_SETTEXT Baangt SETTEXT"]
["TestStep","GES_1_PROD_Fritzi__Variant 1_CLICK",1,"Fritzi","Variant 1","CLICK","GES_1_PROD_Fritzi__Variant 1_CLICK Variant 1 CLICK"]
["TestStep","GES_1_PROD_Fritzi__Variant luxury_SETTEXT",1,"Fritzi","Variant luxury","SETTEXT","GES_1_PROD_Fritzi__Variant luxury_SETTEXT Variant luxury SETTEXT"]
["TestStep","GES_1_PROD_Fritzi__Varinat better_CLICK",1,"Fritzi","Varinat better","CLICK","GES_1_PROD_Fritzi__Varinat better_CLICK Varinat better CLICK"]
["TestStep","GES_1_PROD_Fritzi__Variant worse_SETTEXT",1,"Fritzi","Variant worse","SETTEXT","GES_1_PROD_Fritzi__Variant worse_SETTEXT Variant worse SETTEXT"]
["TestStep","GES_1_PROD_Fritzi__Bad Variant_CLICK",1,"Fritzi","Bad Variant","CLICK","GES_1_PROD_Fritzi__Bad Variant_CLICK Bad Variant CLICK"]
["TestStep","GES_1_PROD_Fritzi__42 Levels_SETTEXT",1,"Fritzi","42 Levels","SETTEXT","GES_1_PROD_Fritzi__42 Levels_SETTEXT 42 Levels SETTEXT"]
["TestStep","GES_1_PROD_Fritzi__41 Levels_CLICK",1,"Fritzi","41 Levels","CLICK","GES_1_PROD_Fritzi__41 Levels_CLICK 41 Levels CLICK"]
["TestStep","GES_1_PROD_Fritzi__30 Cents_SETTEXT",1,"Fritzi","30 Cents","SETTEXT","GES_1_PROD_Fritzi__30 Cents_SETTEXT 30 Cents SETTEXT"]
["TestStep","GES_1_PROD_Fritzi__ThisIsSomething_CLICK",1,"Fritzi","ThisIsSomething","CLICK","GES_1_PROD_Fritzi__ThisIsSomething_CLICK ThisIsSomething CLICK"]
["TestStep","GES_1_PROD_Fritzi__WhowIsThat good_SETTEXT",1,"Fritzi","WhowIsThat good","SETTEXT","GES_1_PROD_Fritzi__WhowIsThat good_SETTEXT WhowIsThat good SETTEXT"]
["TestStep","GES_1_PROD_Fritzi__OutofOptions_CLICK",1,"Fritzi","OutofOptions","CLICK","GES_1_PROD_Fritzi__OutofOptions_CLICK OutofOptions CLICK"]
["TestStep","GES_1_PROD_Fritzi__PlainWithoutAnything_SETTEXT",1,"Fritzi","PlainWithoutAnything","SETTEXT","GES_1_PROD_Fritzi__PlainWithoutAnything_SETTEXT PlainWithoutAnything SETTEXT"]